Workbook

Sheet HeroModelConfig
A1: ID | B1: nickName | C1: name | E1: headicon | F1: model | G1: isUseGpu | H1: heroType | P1: attack | Q1: hp | R1: def | S1: shield | AC1: speed_atk | AD1: Linggen | AE1: skillID | AF1: skillActiveLv | AG1: fa_bao_id | AH1: fabaoActiveLv | AI1: heroStory
A2: int | B2: int | C2: int | E2: string | F2: string | G2: bool | H2: int | J2: 英雄 | K2: 小怪 | L2: 精英 | M2: 首领 | P2: int | Q2: int | R2: int | S2: int | AC2: float | AD2: int[] | AE2: int[] | AF2: int[] | AG2: int[] | AH2: int[] | AI2: int
J3: 1 | K3: =0.95*0.95 -> 0.9025 | L3: =1.05*1.05 -> 1.1025 | M3: =1.15*1.15 -> 1.3225
A4: modelID | B4: 称号 | C4: 名字 | D4: 名字预览 | E4: 头像素材名 | F4: 模型名称 | H4: 1. 英雄 2. 小怪 3. 精英 4. BOSS | J4: 攻击力 倍率 | K4: 护盾/生命比例 不填=30% | L4: 防御力 倍率 | M4: 护盾 倍率 | N4: 生命值 倍率 | P4: 攻击力 | Q4: 生命值 | R4: 防御力 | S4: 护盾 | U4: 攻击修正 | V4: 生命修正 | W4: 防御修正 | X4: 护盾修正 | Z4: 总能力 | AA4: 攻击能力 | AB4: 生存能力 | AC4: 攻击速度 X秒/圈 | AD4: 灵根初值 金-水-木-火-土 | AE4: 功法序列 主动≤4 被动≤3 | AF4: 功法最低出现等级 | AG4: 角色自带的法宝（最多4个） | AH4: 法宝最低出现等级 | AI4: 英雄故事文本 | AK4: 功法1 | AL4: 功法2 | AM4: 功法3 | AN4: 功法4 | AO4: 功法5 | AP4: 功法6 | AQ4: 功法7 | AR4: 功法8 | AS4: 功法9 | AT4: 功法10 | AV4: 功法1 出现等级 | AW4: 功法2 出现等级 | AX4: 功法3 出现等级 | AY4: 功法4 出现等级 | AZ4: 功法5 出现等级 | BA4: 功法6 出现等级 | BB4: 功法7 出现等级 | BC4: 功法8 出现等级 | BD4: 功法9 出现等级 | BE4: 功法10 出现等级 | BG4: 法宝1 | BH4: 法宝2 | BI4: 法宝3 | BJ4: 法宝4 | BL4: 法宝1 出现等级 | BM4: 法宝2 出现等级 | BN4: 法宝3 出现等级 | BO4: 法宝4 出现等级 | BQ4: 灵根 金 | BR4: 灵根 水 | BS4: 灵根 木 | BT4: 灵根 火 | BU4: 灵根 土
A5: 101 | B5: -1 | C5: 1 | D5: 主角 | E5: =CONCATENATE("icon_tx",A5) -> icon_tx101 | F5: Nanzhu | G5: 0 | H5: 1 | J5: 1 | L5: 1 | M5: =((CHOOSE(H5,J$3,K$3,L$3,M$3)^0.5*100/(AA5*L5)*1.3)-N5)/0.3 -> 1 | N5: =(100/(AA5*L5)*1.3/(1+IF(K5="",0.3,K5)))*CHOOSE(H5,J$3,K$3,L$3,M$3)^0.5 -> 1 | P5: =ROUND(J5*[1]升级!$C$3*CHOOSE(H5,J$3,K$3,L$3,M$3)^0.5*IF(U5="",1,U5),0) -> 100 | Q5: =ROUND(N5*[1]升级!$B$3/[1]升级!$D$1*CHOOSE(H5,J$3,K$3,L$3,M$3)^0.5*IF(V5="",1,V5),0) -> 100 | R5: =ROUND(L5*[1]升级!$D$3,0)*IF(W5="",1,W5) -> 100 | S5: =ROUND(CHOOSE(H5,J$3,K$3,L$3,M$3)^0.5*M5*[1]升级!$B$3/[1]升级!$D$1*IF(X5="",1,X5),0) -> 100 | Z5: =(AA5*AB5)/100 -> 100 | AA5: =J5*100*CHOOSE(H5,J$3,K$3,L$3,M$3)^0.5 -> 100 | AB5: =(N5+M5*0.3)/1.3*L5*100*CHOOSE(H5,J$3,K$3,L$3,M$3)^0.5 -> 100 | AC5: 0 | AD5: =_xlfn.TEXTJOIN(";",1,BQ5:BU5) -> 100;100;100;100;100 | AE5: =_xlfn.TEXTJOIN(";",1,AK5:AT5) -> -1;-1;-1;-1;-1;-1;-1;-1;-1;-1 | AF5: =_xlfn.TEXTJOIN(";",1,AV5:BE5) -> -1;-1;-1;-1;-1;-1;-1;-1;-1;-1 | AG5: =_xlfn.TEXTJOIN(";",1,BG5:BJ5) -> -1;-1;-1;-1 | AH5: =_xlfn.TEXTJOIN(";",1,BL5:BO5) -> -1;-1;-1;-1 | AK5: -1 | AL5: -1 | AM5: -1 | AN5: -1 | AO5: -1 | AP5: -1 | AQ5: -1 | AR5: -1 | AS5: -1 | AT5: -1 | AV5: -1 | AW5: -1 | AX5: -1 | AY5: -1 | AZ5: -1 | BA5: -1 | BB5: -1 | BC5: -1 | BD5: -1 | BE5: -1 | BG5: -1 | BH5: -1 | BI5: -1 | BJ5: -1 | BL5: -1 | BM5: -1 | BN5: -1 | BO5: -1 | BQ5: 100 | BR5: 100 | BS5: 100 | BT5: 100 | BU5: 100
A6: 102 | B6: -1 | C6: 1 | D6: 第一场战斗中的主角 | E6: =CONCATENATE("icon_tx",A6) -> icon_tx102 | F6: Nanzhu | G6: 0 | H6: 1 | J6: 1 | L6: 1 | M6: =((CHOOSE(H6,J$3,K$3,L$3,M$3)^0.5*100/(AA6*L6)*1.3)-N6)/0.3 -> 1 | N6: =(100/(AA6*L6)*1.3/(1+IF(K6="",0.3,K6)))*CHOOSE(H6,J$3,K$3,L$3,M$3)^0.5 -> 1 | P6: =ROUND(J6*[1]升级!$C$3*CHOOSE(H6,J$3,K$3,L$3,M$3)^0.5*IF(U6="",1,U6),0) -> 100 | Q6: =ROUND(N6*[1]升级!$B$3/[1]升级!$D$1*CHOOSE(H6,J$3,K$3,L$3,M$3)^0.5*IF(V6="",1,V6),0) -> 100 | R6: =ROUND(L6*[1]升级!$D$3,0)*IF(W6="",1,W6) -> 100 | S6: =ROUND(CHOOSE(H6,J$3,K$3,L$3,M$3)^0.5*M6*[1]升级!$B$3/[1]升级!$D$1*IF(X6="",1,X6),0) -> 100 | Z6: =(AA6*AB6)/100 -> 100 | AA6: =J6*100*CHOOSE(H6,J$3,K$3,L$3,M$3)^0.5 -> 100 | AB6: =(N6+M6*0.3)/1.3*L6*100*CHOOSE(H6,J$3,K$3,L$3,M$3)^0.5 -> 100 | AC6: 0 | AD6: =_xlfn.TEXTJOIN(";",1,BQ6:BU6) -> 100;100;100;100;100 | AE6: =_xlfn.TEXTJOIN(";",1,AK6:AT6) -> 2006;1103;-1;2011;1105;-1;2003;1101;2012;1102 | AF6: =_xlfn.TEXTJOIN(";",1,AV6:BE6) -> -1;-1;-1;-1;-1;-1;-1;-1;-1;-1 | AG6: =_xlfn.TEXTJOIN(";",1,BG6:BJ6) -> 10010;10001;10006;10002 | AH6: =_xlfn.TEXTJOIN(";",1,BL6:BO6) -> -1;-1;-1;-1 | AK6: 2006 | AL6: 1103 | AM6: -1 | AN6: 2011 | AO6: 1105 | AP6: -1 | AQ6: 2003 | AR6: 1101 | AS6: 2012 | AT6: 1102 | AV6: -1 | AW6: -1 | AX6: -1 | AY6: -1 | AZ6: -1 | BA6: -1 | BB6: -1 | BC6: -1 | BD6: -1 | BE6: -1 | BG6: 10010 | BH6: 10001 | BI6: 10006 | BJ6: 10002 | BL6: -1 | BM6: -1 | BN6: -1 | BO6: -1 | BQ6: 100 | BR6: 100 | BS6: 100 | BT6: 100 | BU6: 100
D7: 小怪
A8: 1001 | B8: -1 | C8: 2 | D8: 蒙面男子 | E8: =CONCATENATE("icon_tx",A8) -> icon_tx1001 | F8: Gw_Man | G8: 0 | H8: 2 | J8: 1.15 | L8: 1 | M8: =((CHOOSE(H8,J$3,K$3,L$3,M$3)^0.5*100/(AA8*L8)*1.3)-N8)/0.3 -> 0.8695652174 | N8: =(100/(AA8*L8)*1.3/(1+IF(K8="",0.3,K8)))*CHOOSE(H8,J$3,K$3,L$3,M$3)^0.5 -> 0.8695652174 | P8: =ROUND(J8*[1]升级!$C$3*CHOOSE(H8,J$3,K$3,L$3,M$3)^0.5*IF(U8="",1,U8),0) -> 109 | Q8: =ROUND(N8*[1]升级!$B$3/[1]升级!$D$1*CHOOSE(H8,J$3,K$3,L$3,M$3)^0.5*IF(V8="",1,V8),0) -> 83 | R8: =ROUND(L8*[1]升级!$D$3,0)*IF(W8="",1,W8) -> 100 | S8: =ROUND(CHOOSE(H8,J$3,K$3,L$3,M$3)^0.5*M8*[1]升级!$B$3/[1]升级!$D$1*IF(X8="",1,X8),0) -> 83 | Z8: =(AA8*AB8)/100 -> 90.25 | AA8: =J8*100*CHOOSE(H8,J$3,K$3,L$3,M$3)^0.5 -> 109.25 | AB8: =(N8+M8*0.3)/1.3*L8*100*CHOOSE(H8,J$3,K$3,L$3,M$3)^0.5 -> 82.60869565 | AC8: 0 | AD8: =_xlfn.TEXTJOIN(";",1,BQ8:BU8) -> 100;100;100;100;100 | AE8: =_xlfn.TEXTJOIN(";",1,AK8:AT8) -> 1201;-1;1301;-1;1401;-1;-1;-1;1101;-1 | AF8: =_xlfn.TEXTJOIN(";",1,AV8:BD8) -> 1;-1;5;-1;20;-1;-1;-1;50 | AG8: =_xlfn.TEXTJOIN(";",1,BG8:BJ8) -> 10010;-1;-1;-1 | AH8: =_xlfn.TEXTJOIN(";",1,BL8:BO8) -> 1;20;50;80 | AK8: 1201 | AL8: -1 | AM8: 1301 | AN8: -1 | AO8: 1401 | AP8: -1 | AQ8: -1 | AR8: -1 | AS8: 1101 | AT8: -1 | AV8: 1 | AW8: -1 | AX8: 5 | AY8: -1 | AZ8: 20 | BA8: -1 | BB8: -1 | BC8: -1 | BD8: 50 | BE8: -1 | BG8: 10010 | BH8: -1 | BI8: -1 | BJ8: -1 | BL8: 1 | BM8: 20 | BN8: 50 | BO8: 80 | BQ8: 100 | BR8: 100 | BS8: 100 | BT8: 100 | BU8: 100
A9: 1002 | B9: -1 | C9: 3 | D9: 蒙面男子 | E9: icon_tx1002 | F9: Gw_Man | G9: 0 | H9: 2 | J9: 1.05 | L9: 1 | M9: =((CHOOSE(H9,J$3,K$3,L$3,M$3)^0.5*100/(AA9*L9)*1.3)-N9)/0.3 -> 0.9523809524 | N9: =(100/(AA9*L9)*1.3/(1+IF(K9="",0.3,K9)))*CHOOSE(H9,J$3,K$3,L$3,M$3)^0.5 -> 0.9523809524 | P9: =ROUND(J9*[1]升级!$C$3*CHOOSE(H9,J$3,K$3,L$3,M$3)^0.5*IF(U9="",1,U9),0) -> 100 | Q9: =ROUND(N9*[1]升级!$B$3/[1]升级!$D$1*CHOOSE(H9,J$3,K$3,L$3,M$3)^0.5*IF(V9="",1,V9),0) -> 90 | R9: =ROUND(L9*[1]升级!$D$3,0)*IF(W9="",1,W9) -> 100 | S9: =ROUND(CHOOSE(H9,J$3,K$3,L$3,M$3)^0.5*M9*[1]升级!$B$3/[1]升级!$D$1*IF(X9="",1,X9),0) -> 90 | Z9: =(AA9*AB9)/100 -> 90.25 | AA9: =J9*100*CHOOSE(H9,J$3,K$3,L$3,M$3)^0.5 -> 99.75 | AB9: =(N9+M9*0.3)/1.3*L9*100*CHOOSE(H9,J$3,K$3,L$3,M$3)^0.5 -> 90.47619048 | AC9: 0 | AD9: 100;100;100;100;100 | AE9: 1202;-1;1301;-1;1402;-1;-1;-1;1102;-1 | AF9: =_xlfn.TEXTJOIN(";",1,AV9:BD9) -> 1;-1;5;-1;20;-1;-1;-1;50 | AG9: 10010;-1;-1;-1 | AH9: 1;20;50;80 | AK9: 1202 | AL9: -1 | AM9: 1301 | AN9: -1 | AO9: 1402 | AP9: -1 | AQ9: -1 | AR9: -1 | AS9: 1102 | AT9: -1 | AV9: 1 | AW9: -1 | AX9: 5 | AY9: -1 | AZ9: 20 | BA9: -1 | BB9: -1 | BC9: -1 | BD9: 50 | BE9: -1 | BG9: 10010 | BH9: -1 | BI9: -1 | BJ9: -1 | BL9: 1 | BM9: 20 | BN9: 50 | BO9: 80 | BQ9: 100 | BR9: 100 | BS9: 100 | BT9: 100 | BU9: 100
A10: 1003 | B10: -1 | C10: 4 | D10: 蒙面女子 | E10: icon_tx1003 | F10: Gw_Woman | G10: 0 | H10: 2 | J10: 0.95 | L10: 1 | M10: 1.052631579 | N10: 1.052631579 | P10: =ROUND(J10*[1]升级!$C$3*CHOOSE(H10,J$3,K$3,L$3,M$3)^0.5*IF(U10="",1,U10),0) -> 90 | Q10: =ROUND(N10*[1]升级!$B$3/[1]升级!$D$1*CHOOSE(H10,J$3,K$3,L$3,M$3)^0.5*IF(V10="",1,V10),0) -> 100 | R10: =ROUND(L10*[1]升级!$D$3,0)*IF(W10="",1,W10) -> 100 | S10: =ROUND(CHOOSE(H10,J$3,K$3,L$3,M$3)^0.5*M10*[1]升级!$B$3/[1]升级!$D$1*IF(X10="",1,X10),0) -> 100 | Z10: 90.25 | AA10: 90.25 | AB10: 100 | AC10: 0 | AD10: 100;100;100;100;100 | AE10: 1201;-1;1301;-1;1403;-1;-1;-1;1103;-1 | AF10: =_xlfn.TEXTJOIN(";",1,AV10:BE10) -> 1;-1;5;-1;20;-1;-1;-1;50;-1 | AG10: 10010;-1;-1;-1 | AH10: 1;20;50;80 | AK10: 1201 | AL10: -1 | AM10: 1301 | AN10: -1 | AO10: 1403 | AP10: -1 | AQ10: -1 | AR10: -1 | AS10: 1103 | AT10: -1 | AV10: 1 | AW10: -1 | AX10: 5 | AY10: -1 | AZ10: 20 | BA10: -1 | BB10: -1 | BC10: -1 | BD10: 50 | BE10: -1 | BG10: 10010 | BH10: -1 | BI10: -1 | BJ10: -1 | BL10: 1 | BM10: 20 | BN10: 50 | BO10: 80 | BQ10: 100 | BR10: 100 | BS10: 100 | BT10: 100 | BU10: 100
A11: 1004 | B11: -1 | C11: 5 | D11: 蒙面女子 | E11: icon_tx1004 | F11: Gw_Woman | G11: 0 | H11: 2 | J11: 0.85 | L11: 1 | M11: 1.176470588 | N11: 1.176470588 | P11: =ROUND(J11*[1]升级!$C$3*CHOOSE(H11,J$3,K$3,L$3,M$3)^0.5*IF(U11="",1,U11),0) -> 81 | Q11: =ROUND(N11*[1]升级!$B$3/[1]升级!$D$1*CHOOSE(H11,J$3,K$3,L$3,M$3)^0.5*IF(V11="",1,V11),0) -> 112 | R11: =ROUND(L11*[1]升级!$D$3,0)*IF(W11="",1,W11) -> 100 | S11: =ROUND(CHOOSE(H11,J$3,K$3,L$3,M$3)^0.5*M11*[1]升级!$B$3/[1]升级!$D$1*IF(X11="",1,X11),0) -> 112 | Z11: 90.25 | AA11: 80.75 | AB11: 111.7647059 | AC11: 0 | AD11: 100;100;100;100;100 | AE11: 1301;-1;1304;-1;1305;-1;-1;1304;-1;-1 | AF11: 1;-1;5;-1;20;-1;-1;50;-1;-1 | AG11: 10010;-1;-1;-1 | AH11: 1;20;50;80 | AK11: 1301 | AL11: -1 | AM11: 1304 | AN11: -1 | AO11: 1305 | AP11: -1 | AQ11: -1 | AR11: 1304 | AS11: -1 | AT11: -1 | AV11: 1 | AW11: -1 | AX11: 5 | AY11: -1 | AZ11: 20 | BA11: -1 | BB11: -1 | BC11: 50 | BD11: -1 | BE11: -1 | BG11: 10010 | BH11: -1 | BI11: -1 | BJ11: -1 | BL11: 1 | BM11: 20 | BN11: 50 | BO11: 80 | BQ11: 100 | BR11: 100 | BS11: 100 | BT11: 100 | BU11: 100
A12: 1005 | B12: -1 | C12: 6 | D12: 树精 | E12: icon_tx1005 | F12: Boss_Tree_xiao | G12: 0 | H12: 2 | J12: 0.7 | L12: 1 | M12: 1.428571429 | N12: 1.428571429 | P12: =ROUND(J12*[1]升级!$C$3*CHOOSE(H12,J$3,K$3,L$3,M$3)^0.5*IF(U12="",1,U12),0) -> 67 | Q12: =ROUND(N12*[1]升级!$B$3/[1]升级!$D$1*CHOOSE(H12,J$3,K$3,L$3,M$3)^0.5*IF(V12="",1,V12),0) -> 136 | R12: =ROUND(L12*[1]升级!$D$3,0)*IF(W12="",1,W12) -> 100 | S12: =ROUND(CHOOSE(H12,J$3,K$3,L$3,M$3)^0.5*M12*[1]升级!$B$3/[1]升级!$D$1*IF(X12="",1,X12),0) -> 136 | Z12: 90.25 | AA12: 66.5 | AB12: 135.7142857 | AC12: 0 | AD12: 100;100;100;100;100 | AE12: 9071;-1;-1;-1;9071;-1;-1;-1;9071;-1 | AF12: 1;-1;-1;-1;20;-1;-1;-1;50;-1 | AG12: -1;-1;-1;-1 | AH12: 1;20;50;80 | AK12: 9071 | AL12: -1 | AM12: -1 | AN12: -1 | AO12: 9071 | AP12: -1 | AQ12: -1 | AR12: -1 | AS12: 9071 | AT12: -1 | AV12: 1 | AW12: -1 | AX12: -1 | AY12: -1 | AZ12: 20 | BA12: -1 | BB12: -1 | BC12: -1 | BD12: 50 | BE12: -1 | BG12: -1 | BH12: -1 | BI12: -1 | BJ12: -1 | BL12: 1 | BM12: 20 | BN12: 50 | BO12: 80 | BQ12: 100 | BR12: 100 | BS12: 100 | BT12: 100 | BU12: 100
A13: 1006 | B13: -1 | C13: 7 | D13: 飞鹤 | E13: icon_tx1006 | F13: gw_xianhe | G13: 0 | H13: 2 | J13: 0.9 | L13: 1 | M13: 1.111111111 | N13: 1.111111111 | P13: =ROUND(J13*[1]升级!$C$3*CHOOSE(H13,J$3,K$3,L$3,M$3)^0.5*IF(U13="",1,U13),0) -> 86 | Q13: =ROUND(N13*[1]升级!$B$3/[1]升级!$D$1*CHOOSE(H13,J$3,K$3,L$3,M$3)^0.5*IF(V13="",1,V13),0) -> 106 | R13: =ROUND(L13*[1]升级!$D$3,0)*IF(W13="",1,W13) -> 100 | S13: =ROUND(CHOOSE(H13,J$3,K$3,L$3,M$3)^0.5*M13*[1]升级!$B$3/[1]升级!$D$1*IF(X13="",1,X13),0) -> 106 | Z13: 90.25 | AA13: 85.5 | AB13: 105.5555556 | AC13: 0 | AD13: 100;100;100;100;100 | AE13: 9091;-1;-1;9091;-1;-1;9092;9091;-1;-1 | AF13: 1;-1;-1;5;-1;-1;50;50;-1;-1 | AG13: -1;-1;-1;-1 | AH13: 1;20;50;80 | AK13: 9091 | AL13: -1 | AM13: -1 | AN13: 9091 | AO13: -1 | AP13: -1 | AQ13: 9092 | AR13: 9091 | AS13: -1 | AT13: -1 | AV13: 1 | AW13: -1 | AX13: -1 | AY13: 5 | AZ13: -1 | BA13: -1 | BB13: 50 | BC13: 50 | BD13: -1 | BE13: -1 | BG13: -1 | BH13: -1 | BI13: -1 | BJ13: -1 | BL13: 1 | BM13: 20 | BN13: 50 | BO13: 80 | BQ13: 100 | BR13: 100 | BS13: 100 | BT13: 100 | BU13: 100
A14: 1007 | B14: -1 | C14: 8 | D14: 灵狐 | E14: icon_tx1007 | F14: gw_huli | G14: 0 | H14: 2 | J14: 1.1 | L14: 1 | M14: 0.9090909091 | N14: 0.9090909091 | P14: =ROUND(J14*[1]升级!$C$3*CHOOSE(H14,J$3,K$3,L$3,M$3)^0.5*IF(U14="",1,U14),0) -> 105 | Q14: =ROUND(N14*[1]升级!$B$3/[1]升级!$D$1*CHOOSE(H14,J$3,K$3,L$3,M$3)^0.5*IF(V14="",1,V14),0) -> 86 | R14: =ROUND(L14*[1]升级!$D$3,0)*IF(W14="",1,W14) -> 100 | S14: =ROUND(CHOOSE(H14,J$3,K$3,L$3,M$3)^0.5*M14*[1]升级!$B$3/[1]升级!$D$1*IF(X14="",1,X14),0) -> 86 | Z14: 90.25 | AA14: 104.5 | AB14: 86.36363636 | AC14: 0 | AD14: 100;100;100;100;100 | AE14: 9101;-1;-1;9101;-1;9102;-1;9101;-1;-1 | AF14: 1;-1;-1;5;-1;20;-1;50;-1;-1 | AG14: -1;-1;-1;-1 | AH14: 1;20;50;80 | AK14: 9101 | AL14: -1 | AM14: -1 | AN14: 9101 | AO14: -1 | AP14: 9102 | AQ14: -1 | AR14: 9101 | AS14: -1 | AT14: -1 | AV14: 1 | AW14: -1 | AX14: -1 | AY14: 5 | AZ14: -1 | BA14: 20 | BB14: -1 | BC14: 50 | BD14: -1 | BE14: -1 | BG14: -1 | BH14: -1 | BI14: -1 | BJ14: -1 | BL14: 1 | BM14: 20 | BN14: 50 | BO14: 80 | BQ14: 100 | BR14: 100 | BS14: 100 | BT14: 100 | BU14: 100
A15: 1008 | B15: -1 | C15: 9 | D15: 蜘蛛 | E15: icon_tx1008 | F15: Gw_zhizhu | G15: 0 | H15: 2 | J15: 1.3 | L15: 1 | M15: 0.7692307692 | N15: 0.7692307692 | P15: =ROUND(J15*[1]升级!$C$3*CHOOSE(H15,J$3,K$3,L$3,M$3)^0.5*IF(U15="",1,U15),0) -> 124 | Q15: =ROUND(N15*[1]升级!$B$3/[1]升级!$D$1*CHOOSE(H15,J$3,K$3,L$3,M$3)^0.5*IF(V15="",1,V15),0) -> 73 | R15: =ROUND(L15*[1]升级!$D$3,0)*IF(W15="",1,W15) -> 100 | S15: =ROUND(CHOOSE(H15,J$3,K$3,L$3,M$3)^0.5*M15*[1]升级!$B$3/[1]升级!$D$1*IF(X15="",1,X15),0) -> 73 | Z15: 90.25 | AA15: 123.5 | AB15: 73.07692308 | AC15: 0 | AD15: 100;100;100;100;100 | AE15: 9031;-1;-1;9033;-1;-1;-1;9032;-1;-1 | AF15: 1;-1;-1;5;-1;-1;-1;50;-1;-1 | AG15: -1;-1;-1;-1 | AH15: 1;20;50;80 | AK15: 9031 | AL15: -1 | AM15: -1 | AN15: 9033 | AO15: -1 | AP15: -1 | AQ15: -1 | AR15: 9032 | AS15: -1 | AT15: -1 | AV15: 1 | AW15: -1 | AX15: -1 | AY15: 5 | AZ15: -1 | BA15: -1 | BB15: -1 | BC15: 50 | BD15: -1 | BE15: -1 | BG15: -1 | BH15: -1 | BI15: -1 | BJ15: -1 | BL15: 1 | BM15: 20 | BN15: 50 | BO15: 80 | BQ15: 100 | BR15: 100 | BS15: 100 | BT15: 100 | BU15: 100
D16: 5001精英怪
A17: 5001 | B17: -1 | C17: 10 | D17: 金修精英 | E17: =CONCATENATE("icon_tx",A17) -> icon_tx5001 | F17: Gw_Man | G17: 0 | H17: 3 | J17: 1.1 | L17: 1 | M17: =((CHOOSE(H17,J$3,K$3,L$3,M$3)^0.5*100/(AA17*L17)*1.3)-N17)/0.3 -> 0.9090909091 | N17: =(100/(AA17*L17)*1.3/(1+IF(K17="",0.3,K17)))*CHOOSE(H17,J$3,K$3,L$3,M$3)^0.5 -> 0.9090909091 | P17: =ROUND(J17*[1]升级!$C$3*CHOOSE(H17,J$3,K$3,L$3,M$3)^0.5*IF(U17="",1,U17),0) -> 116 | Q17: =ROUND(N17*[1]升级!$B$3/[1]升级!$D$1*CHOOSE(H17,J$3,K$3,L$3,M$3)^0.5*IF(V17="",1,V17),0) -> 95 | R17: =ROUND(L17*[1]升级!$D$3,0)*IF(W17="",1,W17) -> 100 | S17: =ROUND(CHOOSE(H17,J$3,K$3,L$3,M$3)^0.5*M17*[1]升级!$B$3/[1]升级!$D$1*IF(X17="",1,X17),0) -> 95 | Z17: =(AA17*AB17)/100 -> 110.25 | AA17: =J17*100*CHOOSE(H17,J$3,K$3,L$3,M$3)^0.5 -> 115.5 | AB17: =(N17+M17*0.3)/1.3*L17*100*CHOOSE(H17,J$3,K$3,L$3,M$3)^0.5 -> 95.45454545 | AC17: 0 | AD17: =_xlfn.TEXTJOIN(";",1,BQ17:BU17) -> 100;100;100;100;100 | AE17: =_xlfn.TEXTJOIN(";",1,AK17:AT17) -> -1;-1;1105;-1;1104;-1;1101;-1;1103;-1 | AF17: =_xlfn.TEXTJOIN(";",1,AV17:BE17) -> -1;-1;1;-1;5;-1;20;-1;50;-1 | AG17: =_xlfn.TEXTJOIN(";",1,BG17:BJ17) -> 10002;10001;-1;-1 | AH17: =_xlfn.TEXTJOIN(";",1,BL17:BO17) -> 1;20;50;80 | AK17: -1 | AL17: -1 | AM17: 1105 | AN17: -1 | AO17: 1104 | AP17: -1 | AQ17: 1101 | AR17: -1 | AS17: 1103 | AT17: -1 | AV17: -1 | AW17: -1 | AX17: 1 | AY17: -1 | AZ17: 5 | BA17: -1 | BB17: 20 | BC17: -1 | BD17: 50 | BE17: -1 | BG17: 10002 | BH17: 10001 | BI17: -1 | BJ17: -1 | BL17: 1 | BM17: 20 | BN17: 50 | BO17: 80 | BQ17: 100 | BR17: 100 | BS17: 100 | BT17: 100 | BU17: 100
A18: 5002 | B18: -1 | C18: 11 | D18: 水修精英 | E18: icon_tx5002 | F18: Gw_Man | G18: 0 | H18: 3 | J18: 0.9 | L18: 1 | M18: =((CHOOSE(H18,J$3,K$3,L$3,M$3)^0.5*100/(AA18*L18)*1.3)-N18)/0.3 -> 1.111111111 | N18: =(100/(AA18*L18)*1.3/(1+IF(K18="",0.3,K18)))*CHOOSE(H18,J$3,K$3,L$3,M$3)^0.5 -> 1.111111111 | P18: =ROUND(J18*[1]升级!$C$3*CHOOSE(H18,J$3,K$3,L$3,M$3)^0.5*IF(U18="",1,U18),0) -> 95 | Q18: =ROUND(N18*[1]升级!$B$3/[1]升级!$D$1*CHOOSE(H18,J$3,K$3,L$3,M$3)^0.5*IF(V18="",1,V18),0) -> 117 | R18: =ROUND(L18*[1]升级!$D$3,0)*IF(W18="",1,W18) -> 100 | S18: =ROUND(CHOOSE(H18,J$3,K$3,L$3,M$3)^0.5*M18*[1]升级!$B$3/[1]升级!$D$1*IF(X18="",1,X18),0) -> 117 | Z18: =(AA18*AB18)/100 -> 110.25 | AA18: =J18*100*CHOOSE(H18,J$3,K$3,L$3,M$3)^0.5 -> 94.5 | AB18: =(N18+M18*0.3)/1.3*L18*100*CHOOSE(H18,J$3,K$3,L$3,M$3)^0.5 -> 116.6666667 | AC18: 0 | AD18: 100;100;100;100;100 | AE18: 1201;-1;-1;-1;1205;-1;1204;-1;1202;-1 | AF18: 1;-1;-1;-1;5;-1;20;-1;50;-1 | AG18: 10002;10005;-1;-1 | AH18: 1;20;50;80 | AK18: 1201 | AL18: -1 | AM18: -1 | AN18: -1 | AO18: 1205 | AP18: -1 | AQ18: 1204 | AR18: -1 | AS18: 1202 | AT18: -1 | AV18: 1 | AW18: -1 | AX18: -1 | AY18: -1 | AZ18: 5 | BA18: -1 | BB18: 20 | BC18: -1 | BD18: 50 | BE18: -1 | BG18: 10002 | BH18: 10005 | BI18: -1 | BJ18: -1 | BL18: 1 | BM18: 20 | BN18: 50 | BO18: 80 | BQ18: 100 | BR18: 100 | BS18: 100 | BT18: 100 | BU18: 100
A19: 5003 | B19: -1 | C19: 12 | D19: 木修精英 | E19: icon_tx5003 | F19: Gw_Woman | G19: 0 | H19: 3 | J19: 1 | L19: 1 | M19: 1 | N19: 1 | P19: =ROUND(J19*[1]升级!$C$3*CHOOSE(H19,J$3,K$3,L$3,M$3)^0.5*IF(U19="",1,U19),0) -> 105 | Q19: =ROUND(N19*[1]升级!$B$3/[1]升级!$D$1*CHOOSE(H19,J$3,K$3,L$3,M$3)^0.5*IF(V19="",1,V19),0) -> 105 | R19: =ROUND(L19*[1]升级!$D$3,0)*IF(W19="",1,W19) -> 100 | S19: =ROUND(CHOOSE(H19,J$3,K$3,L$3,M$3)^0.5*M19*[1]升级!$B$3/[1]升级!$D$1*IF(X19="",1,X19),0) -> 105 | Z19: 110.25 | AA19: 105 | AB19: 105 | AC19: 0 | AD19: 100;100;100;100;100 | AE19: -1;1301;-1;-1;1305;-1;1304;-1;-1;1302 | AF19: -1;1;-1;-1;5;-1;20;-1;1;50 | AG19: 10010;10007;-1;-1 | AH19: 1;20;50;80 | AK19: -1 | AL19: 1301 | AM19: -1 | AN19: -1 | AO19: 1305 | AP19: -1 | AQ19: 1304 | AR19: -1 | AS19: -1 | AT19: 1302 | AV19: -1 | AW19: 1 | AX19: -1 | AY19: -1 | AZ19: 5 | BA19: -1 | BB19: 20 | BC19: -1 | BD19: 1 | BE19: 50 | BG19: 10010 | BH19: 10007 | BI19: -1 | BJ19: -1 | BL19: 1 | BM19: 20 | BN19: 50 | BO19: 80 | BQ19: 100 | BR19: 100 | BS19: 100 | BT19: 100 | BU19: 100
A20: 5004 | B20: -1 | C20: 13 | D20: 火修精英 | E20: icon_tx5004 | F20: Gw_Woman | G20: 0 | H20: 3 | J20: 1.2 | L20: 1 | M20: 0.8333333333 | N20: 0.8333333333 | P20: =ROUND(J20*[1]升级!$C$3*CHOOSE(H20,J$3,K$3,L$3,M$3)^0.5*IF(U20="",1,U20),0) -> 126 | Q20: =ROUND(N20*[1]升级!$B$3/[1]升级!$D$1*CHOOSE(H20,J$3,K$3,L$3,M$3)^0.5*IF(V20="",1,V20),0) -> 88 | R20: =ROUND(L20*[1]升级!$D$3,0)*IF(W20="",1,W20) -> 100 | S20: =ROUND(CHOOSE(H20,J$3,K$3,L$3,M$3)^0.5*M20*[1]升级!$B$3/[1]升级!$D$1*IF(X20="",1,X20),0) -> 88 | Z20: 110.25 | AA20: 126 | AB20: 87.5 | AC20: 0 | AD20: 100;100;100;100;100 | AE20: -1;1404;-1;1401;-1;-1;-1;1402;-1;1403 | AF20: -1;1;-1;5;-1;-1;-1;20;1;50 | AG20: 10002;10010;-1;-1 | AH20: 1;20;50;80 | AK20: -1 | AL20: 1404 | AM20: -1 | AN20: 1401 | AO20: -1 | AP20: -1 | AQ20: -1 | AR20: 1402 | AS20: -1 | AT20: 1403 | AV20: -1 | AW20: 1 | AX20: -1 | AY20: 5 | AZ20: -1 | BA20: -1 | BB20: -1 | BC20: 20 | BD20: 1 | BE20: 50 | BG20: 10002 | BH20: 10010 | BI20: -1 | BJ20: -1 | BL20: 1 | BM20: 20 | BN20: 50 | BO20: 80 | BQ20: 100 | BR20: 100 | BS20: 100 | BT20: 100 | BU20: 100
A21: 5005 | B21: -1 | C21: 14 | D21: 土系怪 | E21: icon_tx5005 | F21: Gw_Man | G21: 0 | H21: 3 | J21: 0.8 | L21: 1 | M21: 1.25 | N21: 1.25 | P21: =ROUND(J21*[1]升级!$C$3*CHOOSE(H21,J$3,K$3,L$3,M$3)^0.5*IF(U21="",1,U21),0) -> 84 | Q21: =ROUND(N21*[1]升级!$B$3/[1]升级!$D$1*CHOOSE(H21,J$3,K$3,L$3,M$3)^0.5*IF(V21="",1,V21),0) -> 131 | R21: =ROUND(L21*[1]升级!$D$3,0)*IF(W21="",1,W21) -> 100 | S21: =ROUND(CHOOSE(H21,J$3,K$3,L$3,M$3)^0.5*M21*[1]升级!$B$3/[1]升级!$D$1*IF(X21="",1,X21),0) -> 131 | Z21: 110.25 | AA21: 84 | AB21: 131.25 | AC21: 0 | AD21: 100;100;100;100;100 | AE21: -1;1501;-1;1502;-1;-1;-1;1504;-1;1505 | AF21: -1;1;-1;5;-1;-1;-1;20;1;50 | AG21: 10010;10001;-1;-1 | AH21: 1;20;50;80 | AK21: -1 | AL21: 1501 | AM21: -1 | AN21: 1502 | AO21: -1 | AP21: -1 | AQ21: -1 | AR21: 1504 | AS21: -1 | AT21: 1505 | AV21: -1 | AW21: 1 | AX21: -1 | AY21: 5 | AZ21: -1 | BA21: -1 | BB21: -1 | BC21: 20 | BD21: 1 | BE21: 50 | BG21: 10010 | BH21: 10001 | BI21: -1 | BJ21: -1 | BL21: 1 | BM21: 20 | BN21: 50 | BO21: 80 | BQ21: 100 | BR21: 100 | BS21: 100 | BT21: 100 | BU21: 100
A22: 5006 | B22: -1 | C22: 15 | D22: 鼠先锋 | E22: icon_tx5006 | F22: Boss_ShuGuai | G22: 0 | H22: 3 | J22: 1.15 | L22: 1 | M22: 0.8695652174 | N22: 0.8695652174 | P22: =ROUND(J22*[1]升级!$C$3*CHOOSE(H22,J$3,K$3,L$3,M$3)^0.5*IF(U22="",1,U22),0) -> 121 | Q22: =ROUND(N22*[1]升级!$B$3/[1]升级!$D$1*CHOOSE(H22,J$3,K$3,L$3,M$3)^0.5*IF(V22="",1,V22),0) -> 91 | R22: =ROUND(L22*[1]升级!$D$3,0)*IF(W22="",1,W22) -> 100 | S22: =ROUND(CHOOSE(H22,J$3,K$3,L$3,M$3)^0.5*M22*[1]升级!$B$3/[1]升级!$D$1*IF(X22="",1,X22),0) -> 91 | Z22: 110.25 | AA22: 120.75 | AB22: 91.30434783 | AC22: 0 | AD22: 100;100;100;100;100 | AE22: -1;9041;-1;9042;-1;-1;9043;-1;-1;9044 | AF22: -1;1;-1;5;-1;-1;20;-1;1;50 | AG22: -1;-1;-1;-1 | AH22: 1;20;50;80 | AK22: -1 | AL22: 9041 | AM22: -1 | AN22: 9042 | AO22: -1 | AP22: -1 | AQ22: 9043 | AR22: -1 | AS22: -1 | AT22: 9044 | AV22: -1 | AW22: 1 | AX22: -1 | AY22: 5 | AZ22: -1 | BA22: -1 | BB22: 20 | BC22: -1 | BD22: 1 | BE22: 50 | BG22: -1 | BH22: -1 | BI22: -1 | BJ22: -1 | BL22: 1 | BM22: 20 | BN22: 50 | BO22: 80 | BQ22: 100 | BR22: 100 | BS22: 100 | BT22: 100 | BU22: 100
A23: 5007 | B23: -1 | C23: 16 | D23: 穷奇 | E23: icon_tx5007 | F23: Boss_QiongQi | G23: 0 | H23: 3 | J23: 1.05 | L23: 1 | M23: 0.9523809524 | N23: 0.9523809524 | P23: =ROUND(J23*[1]升级!$C$3*CHOOSE(H23,J$3,K$3,L$3,M$3)^0.5*IF(U23="",1,U23),0) -> 110 | Q23: =ROUND(N23*[1]升级!$B$3/[1]升级!$D$1*CHOOSE(H23,J$3,K$3,L$3,M$3)^0.5*IF(V23="",1,V23),0) -> 100 | R23: =ROUND(L23*[1]升级!$D$3,0)*IF(W23="",1,W23) -> 100 | S23: =ROUND(CHOOSE(H23,J$3,K$3,L$3,M$3)^0.5*M23*[1]升级!$B$3/[1]升级!$D$1*IF(X23="",1,X23),0) -> 100 | Z23: 110.25 | AA23: 110.25 | AB23: 100 | AC23: 0 | AD23: 100;100;100;100;100 | AE23: -1;9051;-1;9052;-1;-1;9053;-1;-1;9054 | AF23: -1;1;-1;5;-1;-1;20;-1;1;50 | AG23: -1;-1;-1;-1 | AH23: 1;20;50;80 | AK23: -1 | AL23: 9051 | AM23: -1 | AN23: 9052 | AO23: -1 | AP23: -1 | AQ23: 9053 | AR23: -1 | AS23: -1 | AT23: 9054 | AV23: -1 | AW23: 1 | AX23: -1 | AY23: 5 | AZ23: -1 | BA23: -1 | BB23: 20 | BC23: -1 | BD23: 1 | BE23: 50 | BG23: -1 | BH23: -1 | BI23: -1 | BJ23: -1 | BL23: 1 | BM23: 20 | BN23: 50 | BO23: 80 | BQ23: 100 | BR23: 100 | BS23: 100 | BT23: 100 | BU23: 100
D24: boss怪
A25: 9001 | B25: -1 | C25: 17 | D25: boss | E25: =CONCATENATE("icon_tx",A25) -> icon_tx9001 | F25: Boss01 | G25: 0 | H25: 4 | J25: 1 | L25: 1 | M25: =((CHOOSE(H25,J$3,K$3,L$3,M$3)^0.5*100/(AA25*L25)*1.3)-N25)/0.3 -> 1 | N25: =(100/(AA25*L25)*1.3/(1+IF(K25="",0.3,K25)))*CHOOSE(H25,J$3,K$3,L$3,M$3)^0.5 -> 1 | P25: =ROUND(J25*[1]升级!$C$3*CHOOSE(H25,J$3,K$3,L$3,M$3)^0.5*IF(U25="",1,U25),0) -> 115 | Q25: =ROUND(N25*[1]升级!$B$3/[1]升级!$D$1*CHOOSE(H25,J$3,K$3,L$3,M$3)^0.5*IF(V25="",1,V25),0) -> 81 | R25: =ROUND(L25*[1]升级!$D$3,0)*IF(W25="",1,W25) -> 100 | S25: =ROUND(CHOOSE(H25,J$3,K$3,L$3,M$3)^0.5*M25*[1]升级!$B$3/[1]升级!$D$1*IF(X25="",1,X25),0) -> 115 | V25: 0.7 | Z25: =(AA25*AB25)/100 -> 132.25 | AA25: =J25*100*CHOOSE(H25,J$3,K$3,L$3,M$3)^0.5 -> 115 | AB25: =(N25+M25*0.3)/1.3*L25*100*CHOOSE(H25,J$3,K$3,L$3,M$3)^0.5 -> 115 | AC25: 0 | AD25: =_xlfn.TEXTJOIN(";",1,BQ25:BU25) -> 100;100;100;100;100 | AE25: =_xlfn.TEXTJOIN(";",1,AK25:AT25) -> 9003;-1;9005;-1;9005;-1;9004;-1;9001;9002 | AF25: =_xlfn.TEXTJOIN(";",1,AV25:BE25) -> 1;1;1;-1;-1;-1;-1;-1;1;1 | AG25: =_xlfn.TEXTJOIN(";",1,BG25:BJ25) -> 10001;-1;10006;-1 | AH25: =_xlfn.TEXTJOIN(";",1,BL25:BO25) -> 30;-1;1;-1 | AK25: 9003 | AL25: -1 | AM25: 9005 | AN25: -1 | AO25: 9005 | AP25: -1 | AQ25: 9004 | AR25: -1 | AS25: 9001 | AT25: 9002 | AV25: 1 | AW25: 1 | AX25: 1 | AY25: -1 | AZ25: -1 | BA25: -1 | BB25: -1 | BC25: -1 | BD25: 1 | BE25: 1 | BG25: 10001 | BH25: -1 | BI25: 10006 | BJ25: -1 | BL25: 30 | BM25: -1 | BN25: 1 | BO25: -1 | BQ25: 100 | BR25: 100 | BS25: 100 | BT25: 100 | BU25: 100
A26: 9002 | B26: -1 | C26: 18 | D26: 凤凰 | E26: icon_tx9002 | F26: Boss_fenghuang | G26: 0 | H26: 4 | J26: 1 | L26: 1 | M26: =((CHOOSE(H26,J$3,K$3,L$3,M$3)^0.5*100/(AA26*L26)*1.3)-N26)/0.3 -> 1 | N26: =(100/(AA26*L26)*1.3/(1+IF(K26="",0.3,K26)))*CHOOSE(H26,J$3,K$3,L$3,M$3)^0.5 -> 1 | P26: =ROUND(J26*[1]升级!$C$3*CHOOSE(H26,J$3,K$3,L$3,M$3)^0.5*IF(U26="",1,U26),0) -> 58 | Q26: =ROUND(N26*[1]升级!$B$3/[1]升级!$D$1*CHOOSE(H26,J$3,K$3,L$3,M$3)^0.5*IF(V26="",1,V26),0) -> 115 | R26: =ROUND(L26*[1]升级!$D$3,0)*IF(W26="",1,W26) -> 100 | S26: =ROUND(CHOOSE(H26,J$3,K$3,L$3,M$3)^0.5*M26*[1]升级!$B$3/[1]升级!$D$1*IF(X26="",1,X26),0) -> 115 | U26: 0.5 | Z26: =(AA26*AB26)/100 -> 132.25 | AA26: =J26*100*CHOOSE(H26,J$3,K$3,L$3,M$3)^0.5 -> 115 | AB26: =(N26+M26*0.3)/1.3*L26*100*CHOOSE(H26,J$3,K$3,L$3,M$3)^0.5 -> 115 | AC26: 2 | AD26: 100;100;100;100;100 | AE26: 9011;-1;9013;9014;-1;9012;-1;-1;9015;9015 | AF26: 1;1;1;-1;-1;-1;-1;-1;1;1 | AG26: -1;-1;-1;-1 | AH26: 1;-1;1;-1 | AK26: 9011 | AL26: -1 | AM26: 9013 | AN26: 9014 | AO26: -1 | AP26: 9012 | AQ26: -1 | AR26: -1 | AS26: 9015 | AT26: 9015 | AV26: 1 | AW26: 1 | AX26: 1 | AY26: -1 | AZ26: -1 | BA26: -1 | BB26: -1 | BC26: -1 | BD26: 1 | BE26: 1 | BG26: -1 | BH26: -1 | BI26: -1 | BJ26: -1 | BL26: 1 | BM26: -1 | BN26: 1 | BO26: -1 | BQ26: 100 | BR26: 100 | BS26: 100 | BT26: 100 | BU26: 100
A27: 9003 | B27: -1 | C27: 19 | D27: 北海神龟 | E27: icon_tx9003 | F27: Boss_BeiHaiGui | G27: 0 | H27: 4 | J27: 0.8 | L27: 1 | M27: 1.25 | N27: 1.25 | P27: =ROUND(J27*[1]升级!$C$3*CHOOSE(H27,J$3,K$3,L$3,M$3)^0.5*IF(U27="",1,U27),0) -> 92 | Q27: =ROUND(N27*[1]升级!$B$3/[1]升级!$D$1*CHOOSE(H27,J$3,K$3,L$3,M$3)^0.5*IF(V27="",1,V27),0) -> 144 | R27: =ROUND(L27*[1]升级!$D$3,0)*IF(W27="",1,W27) -> 100 | S27: =ROUND(CHOOSE(H27,J$3,K$3,L$3,M$3)^0.5*M27*[1]升级!$B$3/[1]升级!$D$1*IF(X27="",1,X27),0) -> 144 | Z27: 132.25 | AA27: =J27*100*CHOOSE(H27,J$3,K$3,L$3,M$3)^0.5 -> 92 | AB27: =(N27+M27*0.3)/1.3*L27*100*CHOOSE(H27,J$3,K$3,L$3,M$3)^0.5 -> 143.75 | AC27: 0 | AD27: 100;100;100;100;100 | AE27: 9021;-1;-1;9022;9023;-1;-1;-1;9024;9023 | AF27: 1;1;1;-1;-1;-1;-1;-1;1;1 | AG27: -1;-1;-1;-1 | AH27: 1;-1;1;-1 | AK27: 9021 | AL27: -1 | AM27: -1 | AN27: 9022 | AO27: 9023 | AP27: -1 | AQ27: -1 | AR27: -1 | AS27: 9024 | AT27: 9023 | AV27: 1 | AW27: 1 | AX27: 1 | AY27: -1 | AZ27: -1 | BA27: -1 | BB27: -1 | BC27: -1 | BD27: 1 | BE27: 1 | BG27: -1 | BH27: -1 | BI27: -1 | BJ27: -1 | BL27: 1 | BM27: -1 | BN27: 1 | BO27: -1 | BQ27: 100 | BR27: 100 | BS27: 100 | BT27: 100 | BU27: 100
A28: 9004 | B28: -1 | C28: 20 | D28: 樗木之灵 | E28: icon_tx9004 | F28: Boss_Tree | G28: 0 | H28: 4 | J28: 1 | L28: 1 | M28: 1 | N28: 1 | P28: =ROUND(J28*[1]升级!$C$3*CHOOSE(H28,J$3,K$3,L$3,M$3)^0.5*IF(U28="",1,U28),0) -> 115 | Q28: =ROUND(N28*[1]升级!$B$3/[1]升级!$D$1*CHOOSE(H28,J$3,K$3,L$3,M$3)^0.5*IF(V28="",1,V28),0) -> 115 | R28: =ROUND(L28*[1]升级!$D$3,0)*IF(W28="",1,W28) -> 100 | S28: =ROUND(CHOOSE(H28,J$3,K$3,L$3,M$3)^0.5*M28*[1]升级!$B$3/[1]升级!$D$1*IF(X28="",1,X28),0) -> 115 | Z28: 132.25 | AA28: =J28*100*CHOOSE(H28,J$3,K$3,L$3,M$3)^0.5 -> 115 | AB28: =(N28+M28*0.3)/1.3*L28*100*CHOOSE(H28,J$3,K$3,L$3,M$3)^0.5 -> 115 | AC28: 0 | AD28: 100;100;100;100;100 | AE28: -1;9061;9063;9064;9062;9063;-1;-1;-1;9063 | AF28: 1;1;1;-1;-1;-1;-1;-1;1;1 | AG28: -1;-1;-1;-1 | AH28: 1;-1;1;-1 | AK28: -1 | AL28: 9061 | AM28: 9063 | AN28: 9064 | AO28: 9062 | AP28: 9063 | AQ28: -1 | AR28: -1 | AS28: -1 | AT28: 9063 | AV28: 1 | AW28: 1 | AX28: 1 | AY28: -1 | AZ28: -1 | BA28: -1 | BB28: -1 | BC28: -1 | BD28: 1 | BE28: 1 | BG28: -1 | BH28: -1 | BI28: -1 | BJ28: -1 | BL28: 1 | BM28: -1 | BN28: 1 | BO28: -1 | BQ28: 100 | BR28: 100 | BS28: 100 | BT28: 100 | BU28: 100
A29: 9005 | B29: -1 | C29: 21 | D29: 心魔 | E29: icon_tx9005 | F29: Nanzhu | G29: 0 | H29: 4 | J29: 1 | L29: 1 | M29: 1 | N29: 1 | P29: =ROUND(J29*[1]升级!$C$3*CHOOSE(H29,J$3,K$3,L$3,M$3)^0.5*IF(U29="",1,U29),0) -> 115 | Q29: =ROUND(N29*[1]升级!$B$3/[1]升级!$D$1*CHOOSE(H29,J$3,K$3,L$3,M$3)^0.5*IF(V29="",1,V29),0) -> 115 | R29: =ROUND(L29*[1]升级!$D$3,0)*IF(W29="",1,W29) -> 100 | S29: =ROUND(CHOOSE(H29,J$3,K$3,L$3,M$3)^0.5*M29*[1]升级!$B$3/[1]升级!$D$1*IF(X29="",1,X29),0) -> 115 | Z29: 132.25 | AA29: =J29*100*CHOOSE(H29,J$3,K$3,L$3,M$3)^0.5 -> 115 | AB29: =(N29+M29*0.3)/1.3*L29*100*CHOOSE(H29,J$3,K$3,L$3,M$3)^0.5 -> 115 | AC29: 0 | AD29: 100;100;100;100;100 | AE29: 2005;1404;2006;1401;2007;-1;1402;2017;1403;-1 | AF29: 1;1;1;-1;-1;-1;-1;-1;1;1 | AG29: 10002;10010;10007;10004 | AH29: 1;-1;1;-1 | AK29: 2005 | AL29: 1404 | AM29: 2006 | AN29: 1401 | AO29: 2007 | AP29: -1 | AQ29: 1402 | AR29: 2017 | AS29: 1403 | AT29: -1 | AV29: 1 | AW29: 1 | AX29: 1 | AY29: -1 | AZ29: -1 | BA29: -1 | BB29: -1 | BC29: -1 | BD29: 1 | BE29: 1 | BG29: 10002 | BH29: 10010 | BI29: 10007 | BJ29: 10004 | BL29: 1 | BM29: -1 | BN29: 1 | BO29: -1 | BQ29: 100 | BR29: 100 | BS29: 100 | BT29: 100 | BU29: 100
A30: 9006 | B30: -1 | C30: 22 | D30: 仙山飞鸟 | E30: icon_tx9006 | F30: Boss_fenghuang | G30: 0 | H30: 4 | J30: 1.2 | L30: 1 | M30: 0.8333333333 | N30: 0.8333333333 | P30: =ROUND(J30*[1]升级!$C$3*CHOOSE(H30,J$3,K$3,L$3,M$3)^0.5*IF(U30="",1,U30),0) -> 138 | Q30: =ROUND(N30*[1]升级!$B$3/[1]升级!$D$1*CHOOSE(H30,J$3,K$3,L$3,M$3)^0.5*IF(V30="",1,V30),0) -> 96 | R30: =ROUND(L30*[1]升级!$D$3,0)*IF(W30="",1,W30) -> 100 | S30: =ROUND(CHOOSE(H30,J$3,K$3,L$3,M$3)^0.5*M30*[1]升级!$B$3/[1]升级!$D$1*IF(X30="",1,X30),0) -> 96 | Z30: 132.25 | AA30: =J30*100*CHOOSE(H30,J$3,K$3,L$3,M$3)^0.5 -> 138 | AB30: =(N30+M30*0.3)/1.3*L30*100*CHOOSE(H30,J$3,K$3,L$3,M$3)^0.5 -> 95.83333333 | AC30: 0 | AD30: 100;100;100;100;100 | AE30: -1;9081;-1;9082;9084;9083;-1;9085;-1;9084 | AF30: 1;1;1;-1;-1;-1;-1;-1;1;1 | AG30: -1;-1;-1;-1 | AH30: 1;-1;1;-1 | AK30: -1 | AL30: 9081 | AM30: -1 | AN30: 9082 | AO30: 9084 | AP30: 9083 | AQ30: -1 | AR30: 9085 | AS30: -1 | AT30: 9084 | AV30: 1 | AW30: 1 | AX30: 1 | AY30: -1 | AZ30: -1 | BA30: -1 | BB30: -1 | BC30: -1 | BD30: 1 | BE30: 1 | BG30: -1 | BH30: -1 | BI30: -1 | BJ30: -1 | BL30: 1 | BM30: -1 | BN30: 1 | BO30: -1 | BQ30: 100 | BR30: 100 | BS30: 100 | BT30: 100 | BU30: 100
AK31: -1 | AL31: -1 | AM31: -1 | AN31: -1 | AO31: -1 | AP31: -1 | AQ31: -1 | AR31: -1 | AS31: -1 | AT31: -1 | AV31: -1 | AW31: -1 | AX31: -1 | AY31: -1 | AZ31: -1 | BA31: -1 | BB31: -1 | BC31: -1 | BD31: -1 | BE31: -1 | BG31: -1 | BH31: -1 | BI31: -1 | BJ31: -1 | BL31: -1 | BM31: -1 | BN31: -1 | BO31: -1
AK32: -1 | AL32: -1 | AM32: -1 | AN32: -1 | AO32: -1 | AP32: -1 | AQ32: -1 | AR32: -1 | AS32: -1 | AT32: -1 | AV32: -1 | AW32: -1 | AX32: -1 | AY32: -1 | AZ32: -1 | BA32: -1 | BB32: -1 | BC32: -1 | BD32: -1 | BE32: -1 | BG32: -1 | BH32: -1 | BI32: -1 | BJ32: -1 | BL32: -1 | BM32: -1 | BN32: -1 | BO32: -1
M33: 0.8148148148 | N33: 1.2 | AK33: -1 | AL33: -1 | AM33: -1 | AN33: -1 | AO33: -1 | AP33: -1 | AQ33: -1 | AR33: -1 | AS33: -1 | AT33: -1 | AV33: -1 | AW33: -1 | AX33: -1 | AY33: -1 | AZ33: -1 | BA33: -1 | BB33: -1 | BC33: -1 | BD33: -1 | BE33: -1 | BG33: -1 | BH33: -1 | BI33: -1 | BJ33: -1 | BL33: -1 | BM33: -1 | BN33: -1 | BO33: -1
M34: 1 | N34: 1 | AK34: -1 | AL34: -1 | AM34: -1 | AN34: -1 | AO34: -1 | AP34: -1 | AQ34: -1 | AR34: -1 | AS34: -1 | AT34: -1 | AV34: -1 | AW34: -1 | AX34: -1 | AY34: -1 | AZ34: -1 | BA34: -1 | BB34: -1 | BC34: -1 | BD34: -1 | BE34: -1 | BG34: -1 | BH34: -1 | BI34: -1 | BJ34: -1 | BL34: -1 | BM34: -1 | BN34: -1 | BO34: -1
M35: 0.9 | N35: 0.9
M36: 0.9 | N36: 0.9
M37: 1.111111111 | N37: 1.111111111
M38: 1.111111111 | N38: 1.111111111
